bitfinex/quotes_SOLUSD_20250429
["timestamp","ask_amount","ask_price","bid_price","bid_amount"]
[1745935311421,0.03,147.54,147.53,63.31192622]
[1745935312305,0.03,147.54,147.53,44.52011579]
[1745935313134,0.03,147.54,147.53,6.92044395]
[1745935313431,0.03,147.54,147.53,44.52011579]
[1745935314095,1.03,147.54,147.53,37.74183341]
[1745935314297,1.03,147.54,147.53,16.76]
[1745935314912,1.03,147.54,147.53,54.50183341]
[1745935315109,0.03,147.54,147.53,54.50183341]
[1745935315425,1.03,147.54,147.53,54.50183341]
[1745935315627,1.03,147.54,147.53,61.28011579]
[1745935315915,0.03,147.54,147.53,61.28011579]
[1745935316422,1.03,147.54,147.53,61.28011579]
[1745935316833,0.03,147.55,147.54,18.933972]
[1745935317048,0.03,147.6,147.57,18.933972]
[1745935317321,1.03,147.69,147.62,26.0]
[1745935317496,0.03,147.69,147.66,26.0]
[1745935318110,0.03,147.69,147.68,37.59967184]
[1745935318315,0.03,147.69,147.68,37.74183341]
[1745935318517,0.03,147.69,147.68,44.37106945]
[1745935318822,0.03,147.69,147.68,44.51323102]
[1745935319029,0.03,147.69,147.68,6.91355918]
[1745935319232,0.03,147.69,147.68,63.30504145]
[1745935319531,0.03,147.69,147.68,6.91355918]
[1745935319729,0.03,147.69,147.68,44.51323102]
[1745935320508,1e-08,147.69,147.68,102.09074288]
[1745935321002,1e-08,147.69,147.68,8.09958877]
[1745935321203,1e-08,147.69,147.68,89.30504145]
[1745935321404,1e-08,147.69,147.68,126.90471329]
[1745935321620,0.03,147.74,147.68,152.87542995]
[1745935321805,7.1443,147.8,147.73,63.74183341]
[1745935322123,7.1443,147.8,147.78,37.59967184]
[1745935322499,7.1443,147.8,147.79,37.59967184]
[1745935322915,6.1443,147.8,147.78,6.7664288]
[1745935323121,7.1443,147.8,147.79,37.59967184]
[1745935323320,1.03,147.81,147.79,37.59967184]
[1745935323705,1.0,147.8,147.77,0.14216157]
[1745935323908,1.0,147.8,147.79,37.74183341]
[1745935324107,0.03,147.81,147.8,0.14216157]
[1745935324310,1.0,147.8,147.78,0.14216157]
[1745935324511,1.0,147.8,147.79,37.59967184]
[1745935324706,0.03,147.81,147.8,0.14216157]
[1745935324935,0.03,147.81,147.8,37.74183341]
[1745935325506,1.03,147.81,147.8,37.74183341]
[1745935325836,1.03,147.81,147.8,0.14216157]
[1745935326016,1.0,147.8,147.79,37.74183341]
[1745935326217,1.0,147.79,147.78,37.59967184]
[1745935326415,1.0,147.78,147.77,37.74183341]
[1745935326619,1.0,147.78,147.77,44.50910687]
[1745935326821,1.0,147.78,147.77,37.74183341]
[1745935327015,1.03,147.81,147.78,0.14216157]
[1745935327209,1.03,147.81,147.77,44.36694034]
[1745935327210,1.03,147.81,147.8,37.74183341]
[1745935328734,1.03,147.81,147.8,44.50773327]
[1745935329334,1.03,147.81,147.8,22.46216157]
[1745935329514,1.03,147.81,147.8,60.06183341]
[1745935329713,1.0,147.79,147.74,26.0]
[1745935329934,1.0,147.77,147.76,37.59967184]
[1745935330119,1.0,147.8,147.76,37.59967184]
[1745935330320,1.0,147.8,147.79,37.59967184]
[1745935330523,1.0,147.76,147.74,22.32]
[1745935330727,1.0,147.76,147.74,59.91967184]
[1745935331333,1.0,147.76,147.75,37.59967184]
[1745935331711,1.0,147.76,147.75,37.74183341]
[1745935332122,1.0,147.76,147.75,37.59967184]
[1745935332450,1.0,147.75,147.74,22.32]
[1745935332649,1.0,147.75,147.74,59.91967184]
[1745935332815,1.0,147.76,147.74,59.91967184]
[1745935333016,1.0,147.76,147.75,37.74183341]
[1745935333838,1.0,147.76,147.75,0.14216157]
[1745935334040,1.0,147.75,147.74,22.32]
[1745935334214,1.0,147.75,147.74,59.91967184]
[1745935334409,1.0,147.75,147.74,22.32]
[1745935337833,38.59967184,147.75,147.74,22.32]
[1745935338038,1.0,147.72,147.67,22.32]
[1745935338225,1.0,147.63,147.62,0.063]
[1745935338542,38.59967184,147.63,147.62,0.063]
[1745935338851,1.0,147.63,147.62,0.063]
[1745935343143,1.0,147.65,147.64,37.74183341]
[1745935343423,1.0,147.65,147.64,0.14216157]
[1745935343936,1.0,147.67,147.65,0.14216157]
[1745935344137,1.0,147.66,147.65,0.14216157]
[1745935344659,1.0,147.67,147.65,44.51460686]
[1745935344826,1.0,147.67,147.66,37.74183341]
[1745935345318,1.0,147.67,147.66,0.14216157]
[1745935345522,1.0,147.67,147.64,37.59967184]
[1745935345738,1.0,147.66,147.65,37.74183341]
[1745935345936,1.0,147.67,147.65,37.74183341]
[1745935346547,1.0,147.69,147.67,6.91401773]
[1745935346738,1.0,147.71,147.69,0.14216157]
[1745935346939,1.0,147.71,147.7,37.59967184]
[1745935347150,1.0,147.69,147.68,0.14216157]
[1745935347345,1.0,147.69,147.68,37.74183341]
[1745935348149,1.0,147.68,147.66,26.0]
[1745935348455,1.0,147.68,147.67,0.14216157]
[1745935349142,1.0,147.66,147.65,0.14216157]
[1745935349463,1.0,147.64,147.63,59.23967184]
[1745935349633,1.0,147.64,147.63,66.15552439]
[1745935349831,1.0,147.65,147.63,66.01336282]
[1745935350055,1.0,147.65,147.64,37.74183341]
[1745935350436,1.0,147.66,147.64,37.74183341]
[1745935350647,1.0,147.66,147.65,37.74183341]
[1745935353654,1.0,147.72,147.71,44.51185575]
[1745935353862,37.59967184,147.76,147.72,0.14216157]
[1745935353863,1.0,147.76,147.72,0.14216157]
[1745935354064,1.0,147.75,147.73,37.59967184]
[1745935354355,1.0,147.73,147.72,37.74183341]
[1745935354861,1.0,147.73,147.71,37.59967184]
[1745935355169,1.0,147.73,147.71,44.36968014]
[1745935355460,1.0,147.72,147.71,44.51184171]
[1745935355669,1.0,147.71,147.7,20.94]
[1745935355831,1.0,147.71,147.7,65.45231411]
[1745935356258,1.0,147.73,147.7,65.45231411]
[1745935356470,1.0,147.74,147.72,37.59967184]
[1745935356776,1.0,147.74,147.73,0.14216157]
[1745935357273,6.2853,147.79,147.73,0.14216157]
[1745935357274,1.0,147.76,147.75,0.14216157]
[1745935357763,1.0,147.77,147.75,37.74183341]
[1745935357936,1.0,147.76,147.75,0.14216157]
[1745935359150,1.0,147.76,147.75,37.74183341]
[1745935359964,1.0,147.76,147.75,44.51002291]
[1745935360175,1.0,147.77,147.75,44.51002291]
[1745935360784,1.0,147.76,147.75,0.14216157]
[1745935361283,1.0,147.77,147.75,0.14216157]
[1745935361457,1.0,147.76,147.75,0.14216157]
[1745935361886,1.0,147.76,147.75,37.74183341]
[1745935362195,1.0,147.77,147.75,37.74183341]
[1745935362400,1.0,147.76,147.75,37.74183341]
[1745935362891,1.0,147.76,147.71,18.79181043]
[1745935363087,1.0,147.73,147.72,0.14216157]
[1745935363255,1.0,147.73,147.72,44.51130122]
[1745935363454,1.0,147.75,147.72,44.51130122]
[1745935363654,1.0,147.76,147.75,0.14216157]
[1745935364055,1.0,147.77,147.75,0.14216157]
[1745935364688,1.0,147.76,147.75,0.14216157]
[1745935364864,1.0,147.77,147.75,37.74183341]
[1745935365184,1.0,147.78,147.76,37.59967184]
[1745935365373,1.0,147.79,147.77,44.50910687]
[1745935365555,0.03,147.81,147.77,44.50910687]
[1745935365556,1.03,147.81,147.78,37.74183341]
[1745935365757,1.03,147.81,147.8,37.74183341]
[1745935366059,1.03,147.81,147.8,0.14216157]
[1745935366276,1.03,147.81,147.79,37.59967184]
[1745935366562,1.03,147.81,147.8,0.14216157]
[1745935366887,1.0,147.79,147.78,0.14216157]
[1745935367061,1.0,147.79,147.78,37.74183341]
[1745935367464,1.0,147.79,147.77,20.24]
[1745935367689,1.0,147.79,147.77,64.60693881]
[1745935367991,1.0,147.78,147.77,57.98183341]
[1745935368180,1.0,147.78,147.77,20.38216157]
[1745935368573,1.0,147.79,147.78,0.14216157]
[1745935368879,1.0,147.8,147.78,37.74183341]
[1745935369085,1.0,147.8,147.77,27.00727346]
[1745935369086,1.03,147.81,147.8,0.14216157]
[1745935370390,1.03,147.81,147.8,44.50773327]
[1745935371888,0.03,147.81,147.8,44.50773327]
[1745935372061,1.03,147.81,147.8,44.50773327]
[1745935372696,0.03,147.81,147.8,63.2995437]
[1745935373160,0.03,147.81,147.8,25.69987186]
[1745935373660,0.03,147.81,147.8,63.2995437]
[1745935375288,0.03,147.82,147.81,56.53364384]
[1745935375592,0.03,147.82,147.81,57.71606859]
[1745935375992,0.03,147.82,147.81,64.48151071]
[1745935376596,0.9566085,147.86,147.81,81.39511601]
[1745935376793,1.9566085,147.86,147.85,56.53364384]
[1745935376982,1.9566085,147.86,147.85,76.75364384]
[1745935377368,0.9566085,147.86,147.85,76.75364384]
[1745935378099,0.9566085,147.86,147.85,83.5172556]
[1745935378796,0.9566085,147.86,147.85,84.69903156]
[1745935380768,0.9566085,147.86,147.85,83.37509403]
[1745935381084,1.9566085,147.86,147.85,83.37509403]
[1745935381293,1.9566085,147.86,147.85,83.5172556]
[1745935381505,0.03,147.87,147.86,0.28432314]
[1745935381672,0.03,147.87,147.86,69.50880163]
[1745935382072,0.03,147.88,147.87,43.50880163]
[1745935382489,0.03,147.88,147.87,51.45233965]
[1745935382997,0.03,147.88,147.87,50.27149859]
[1745935383713,0.03,147.9,147.89,44.64964886]
[1745935383874,0.03,147.9,147.89,69.36664006]
[1745935384289,0.03,147.9,147.89,69.50880163]
[1745935384489,0.03,147.9,147.89,76.27058403]
[1745935386295,0.03,147.91,147.89,76.27058403]
[1745935386296,0.03,147.91,147.9,18.933972]
[1745935386483,0.03,147.92,147.91,51.69484009]
[1745935386691,0.03,147.92,147.91,120.34449935]
[1745935387090,0.03,147.92,147.91,95.76966972]
[1745935387402,0.03,147.92,147.91,120.34449935]
[1745935389478,0.03,147.96,147.95,44.79181043]
[1745935389693,0.03,147.96,147.95,69.36664006]
[1745935389904,0.03,147.96,147.95,69.50880163]
[1745935390479,1.03,147.96,147.95,76.12568027]
[1745935391197,0.03,147.96,147.95,76.26784184]
[1745935393300,1.03,147.96,147.95,51.55085064]
[1745935393486,1.03,147.96,147.93,18.64964886]
[1745935393682,1.0,147.93,147.92,31.33504217]
[1745935393886,1.0,147.94,147.93,18.64964886]
[1745935394097,1.0,147.94,147.93,43.22447849]
[1745935394294,1.0,147.92,147.91,44.91033312]
[1745935394499,1.0,147.92,147.91,44.07482963]
[1745935394920,1.0,147.92,147.91,62.86664006]
[1745935395221,1.0,147.92,147.91,69.62750815]
[1745935395518,1.0,147.92,147.91,19.5]
[1745935395821,1.0,147.9,147.89,19.5]
[1745935396183,1.0,147.9,147.89,19.64216157]
[1745935396389,1.0,147.9,147.89,19.5]
[1745935398397,1.0,147.9,147.89,26.40394397]
[1745935398810,1.0,147.9,147.89,50.9787736]
[1745935399427,1.0,147.9,147.89,69.62842246]
[1745935400324,1.0,147.9,147.89,45.05359283]
[1745935400823,1.0,147.9,147.89,26.40394397]
[1745935402822,1.0,147.9,147.89,19.5]
[1745935403127,25.57482963,147.9,147.89,19.5]
[1745935405426,32.33615484,147.9,147.89,19.5]
[1745935405597,1.0,147.86,147.85,232.2]
[1745935405801,1.0,147.85,147.84,18.78]
[1745935406116,25.57482963,147.85,147.84,18.78]
[1745935406504,1.0,147.84,147.83,0.063]
[1745935406701,50.14965926,147.84,147.83,0.063]
[1745935406896,25.57482963,147.84,147.83,0.063]
[1745935407910,1.0,147.84,147.83,0.063]
[1745935409233,1.0,147.85,147.84,0.14216157]
[1745935409525,1.0,147.86,147.84,24.7169912]
[1745935409840,1.0,147.86,147.85,24.57482963]
[1745935410047,1.0,147.87,147.85,24.7169912]
[1745935410206,1.0,147.86,147.85,0.14216157]
[1745935411406,1.0,147.84,147.83,0.20516157]
[1745935411914,25.57482963,147.84,147.83,0.063]
[1745935414809,56.91372852,147.84,147.83,0.063]
[1745935415309,60.14282187,147.84,147.83,0.063]
[1745935415509,27.11232963,147.84,147.83,0.063]
[1745935416537,2.5375,147.84,147.83,0.063]
[1745935416830,1.0,147.84,147.83,0.063]
[1745935417422,25.57482963,147.84,147.83,0.063]
[1745935419912,50.14965926,147.84,147.83,0.063]
[1745935420113,56.91372852,147.84,147.83,0.063]
[1745935421543,50.14965926,147.84,147.83,0.063]
[1745935421941,56.91372852,147.84,147.83,0.063]
[1745935422240,25.57482963,147.84,147.83,0.063]
[1745935426440,1.0,147.84,147.83,0.063]
[1745935426643,25.57482963,147.84,147.83,0.063]
[1745935427242,1.0,147.84,147.83,0.063]
[1745935427643,25.57482963,147.84,147.83,0.063]
[1745935431143,34.03030724,147.84,147.83,0.063]
[1745935431331,58.60513687,147.84,147.83,0.063]
[1745935431526,84.74729844,147.84,147.83,0.063]
[1745935432113,64.89369844,147.84,147.83,0.063]
[1745935432344,1.0,147.8,147.79,0.063]
[1745935432525,25.57482963,147.8,147.79,0.063]
[1745935433826,25.57482963,147.8,147.79,0.063]
[1745935437150,1.0,147.8,147.79,0.063]
[1745935439058,25.57482963,147.8,147.79,0.063]
[1745935440830,1.0,147.8,147.79,24.63782963]
[1745935441044,1.0,147.8,147.79,24.7799912]
[1745935441758,1.0,147.8,147.79,0.20516157]
[1745935441965,1.0,147.8,147.79,0.063]
[1745935442537,1.0,147.8,147.79,43.42964006]
[1745935443455,1.0,147.8,147.79,50.19599772]
[1745935444352,1.0,147.82,147.8,18.79181043]
[1745935444543,1.0,147.84,147.82,18.79181043]
[1745935444744,1.0,147.87,147.84,18.64964886]
[1745935445069,1.0,147.89,147.87,0.14216157]
[1745935445240,6.78873242,147.96,147.87,6.90485853]
[1745935445241,1.0,147.88,147.87,6.90485853]
[1745935445435,1.0,147.88,147.87,49.57968816]
[1745935445632,1.0,147.89,147.87,49.57968816]
[1745935445852,1.0,147.89,147.87,25.00485853]
[1745935446062,1.0,147.88,147.87,25.00485853]
[1745935446259,1.0,147.88,147.87,18.1]
[1745935448061,25.57482963,147.88,147.87,18.1]
[1745935448462,1.0,147.83,147.82,18.08]
[1745935448865,1.0,147.83,147.82,42.7969912]
[1745935449643,1.0,147.83,147.82,49.56197564]
[1745935450844,1.0,147.84,147.83,0.14216157]
[1745935451065,1.0,147.84,147.83,24.7169912]
[1745935451770,1.0,147.84,147.83,31.48151802]
[1745935452159,1.0,147.84,147.83,0.14216157]
[1745935452965,1.0,147.84,147.83,31.48151802]
[1745935453151,1.0,147.85,147.83,50.13116688]
[1745935453351,1.0,147.85,147.84,24.57482963]
[1745935453553,1.0,147.86,147.85,18.79181043]
[1745935453870,1.0,147.87,147.85,50.13025182]
[1745935454061,1.0,147.87,147.86,24.57482963]
[1745935454972,1.0,147.87,147.86,43.36664006]
[1745935455769,1.0,147.87,147.86,50.12979439]
[1745935456556,0.03,147.89,147.86,50.12979439]
[1745935456757,1.03,147.89,147.88,24.57482963]
[1745935457054,1.03,147.89,147.88,42.11482963]
[1745935457651,0.03,147.89,147.88,42.11482963]
[1745935457851,1.03,147.89,147.88,48.87706928]
[1745935458266,0.03,147.89,147.88,67.81104128]
[1745935459277,0.03,147.89,147.88,68.99200771]
[1745935459463,1.03,147.96,147.93,0.14216157]
[1745935459663,1.0,147.94,147.93,0.14216157]
[1745935459959,1.0,147.94,147.93,31.47694523]
[1745935460970,1.0,147.95,147.93,31.47694523]
[1745935461173,1.0,147.95,147.94,60.90664006]
[1745935461372,0.03,147.96,147.95,18.933972]
[1745935461682,1.03,147.96,147.95,18.933972]
[1745935461981,1.03,147.96,147.95,50.26784184]
[1745935462173,0.03,147.96,147.95,50.26784184]
[1745935462682,1.03,147.96,147.95,50.26784184]
[1745935463070,1.03,147.96,147.95,25.69301221]
[1745935463250,1.03,147.96,147.95,50.26784184]
[1745935463957,0.03,147.96,147.95,50.26784184]
[1745935464791,1.03,147.96,147.95,50.26784184]
[1745935465081,0.03,147.96,147.95,50.26784184]
[1745935465451,1.03,147.96,147.95,50.26784184]
[1745935465680,0.03,147.96,147.95,50.26784184]
[1745935466177,1.03,147.96,147.95,0.14216157]
[1745935466380,1.0,147.95,147.94,48.87422664]
[1745935466752,1.0,147.95,147.94,17.54]
[1745935467159,1.0,147.95,147.94,42.2569912]
[1745935467359,1.0,147.95,147.94,48.87432672]
[1745935467566,1.0,147.95,147.94,42.11482963]
[1745935467775,1.0,147.95,147.94,48.87432672]
[1745935467979,1.0,147.95,147.94,49.01648829]
[1745935468181,1.0,147.95,147.94,24.44165866]
[1745935468482,0.03,147.96,147.94,24.44165866]
[1745935468483,0.03,147.96,147.95,18.933972]
[1745935468682,1.03,147.96,147.95,43.50880163]
[1745935469286,0.03,147.96,147.95,43.50880163]
[1745935469471,0.03,147.96,147.95,44.68793175]
[1745935470177,0.03,147.96,147.95,51.44697196]
[1745935470358,0.03,147.96,147.95,26.87214233]
[1745935470560,0.03,147.96,147.95,51.44697196]
[1745935470957,0.03,147.96,147.95,53.02407196]
[1745935471382,1.03,147.96,147.95,25.55085064]
[1745935471587,1.03,147.96,147.95,49.9835187]
[1745935471994,1.03,147.96,147.95,50.12568027]
[1745935472196,0.03,147.96,147.95,50.26784184]
[1745935473110,0.03,147.98,147.97,44.79181043]
[1745935473389,0.03,148.0,147.99,0.14216157]
[1745935473692,0.03,148.0,147.99,20.11203024]
[1745935473992,0.03,148.0,147.99,44.68685987]
[1745935474187,0.03,148.0,147.99,51.44407319]
[1745935474389,0.03,148.02,148.01,44.79181043]
[1745935474691,0.03,148.02,148.01,86.88664006]
[1745935475262,1.03,148.02,148.01,87.02880163]
[1745935476279,1.03,148.02,148.01,93.78510187]
[1745935476812,1.03,148.02,148.01,43.06811067]
[1745935477099,1.03,148.02,148.01,60.88664006]
[1745935477293,1.03,148.02,148.01,67.6429403]
[1745935477601,1.03,148.02,148.01,67.78510187]
[1745935479300,1.03,148.02,148.01,17.66216157]
[1745935479470,25.60482963,148.02,148.01,17.52]
[1745935479908,31.85762963,148.02,148.01,17.52]
[1745935480902,8.8097,148.02,148.01,17.52]
[1745935481099,33.38452963,148.02,148.01,17.52]
[1745935481285,8.8097,148.02,148.01,17.52]
[1745935481487,33.38452963,148.02,148.01,17.52]
[1745935482585,8.8097,148.02,148.01,17.52]
[1745935482777,1.03,148.02,148.01,17.66216157]
[1745935482981,1.03,148.02,148.01,42.2369912]
[1745935483167,1.03,148.02,148.01,17.66216157]
[1745935484882,1.03,148.02,148.01,67.6429403]
[1745935485274,0.03,148.02,148.01,67.78510187]
[1745935486199,0.03,148.02,148.01,68.33102587]
[1745935486711,1.03,148.02,148.01,68.33102587]
[1745935489115,1.03,148.02,148.01,43.75619624]
[1745935489412,1.03,148.02,148.01,68.33102587]
[1745935495996,1e-08,148.02,148.01,68.33102587]
[1745935496307,1e-08,148.02,148.01,94.33102587]
[1745935500119,1.00000001,148.02,148.01,94.33102587]
[1745935500317,1.00000001,148.02,148.01,42.64075363]
[1745935500488,1.00000001,148.02,148.01,18.20808557]
[1745935500684,1.00000001,148.02,148.01,18.065924]
[1745935500995,1.00000001,148.02,148.01,49.53921544]
[1745935501187,1.00000001,148.02,148.01,42.7829152]
[1745935501621,1.00000001,148.02,148.01,42.64075363]
[1745935501922,1.00000001,148.02,148.01,42.09482963]
[1745935502118,1.00000001,148.02,148.01,67.6429403]
[1745935502284,1e-08,148.02,148.01,68.96371638]
[1745935502487,1.00000001,148.02,148.01,67.78510187]
[1745935503626,1e-08,148.02,148.01,67.78510187]
[1745935503926,1.00000001,148.02,148.01,67.78510187]
[1745935504498,1e-08,148.02,148.01,67.78510187]
[1745935504945,1.00000001,148.02,148.01,67.78510187]
[1745935505413,1e-08,148.03,148.01,67.78510187]
[1745935505618,0.03,148.04,148.03,0.14216157]
[1745935505912,0.03,148.04,148.03,24.85915277]
[1745935506509,0.03,148.04,148.03,50.26418905]
[1745935506905,0.03,148.05,148.04,18.79181043]
[1745935507106,0.03,148.05,148.04,44.54367479]
[1745935507290,0.03,148.05,148.04,69.26066599]
[1745935508599,0.03,148.05,148.04,76.01559708]
[1745935510444,6.1102,148.1,148.05,0.14216157]
[1745935510662,0.03,148.1,148.07,43.50880163]
[1745935510821,0.03,148.1,148.07,60.74880163]
[1745935511223,0.03,148.1,148.07,60.60664006]
[1745935511644,0.03,148.1,148.07,60.74880163]
[1745935512636,0.03,148.1,148.07,42.78537293]
[1745935512848,0.03,148.1,148.07,48.7105537]
[1745935513513,24.60482963,148.1,148.07,17.38216157]
[1745935513712,24.60482963,148.1,148.07,24.13572407]
[1745935513942,0.03,148.1,148.07,48.7105537]
[1745935514129,24.60482963,148.1,148.07,17.24]
[1745935514449,24.60482963,148.1,148.07,24.13572407]
[1745935515447,0.03,148.1,148.07,48.7105537]
[1745935516348,0.03,148.1,148.07,67.36020256]
[1745935516989,24.60482963,148.08,148.07,17.24]
[1745935517460,0.03,148.08,148.07,17.24]
[1745935517657,0.03,148.08,148.07,67.36020256]
[1745935519161,0.03,148.08,148.07,93.50236413]
[1745935519364,1e-08,148.08,148.07,93.50236413]
[1745935519531,1e-08,148.08,148.07,67.50236413]
[1745935519730,0.03,148.1,148.09,44.933972]
[1745935520030,0.03,148.1,148.09,69.50880163]
[1745935520238,0.9566085,148.16,148.14,18.79181043]
[1745935520443,0.9566085,148.16,148.15,61.78098385]
[1745935520635,0.9566085,148.16,148.15,87.78098385]
[1745935520842,0.03,148.23,148.21,31.46417425]
[1745935521060,0.03,148.23,148.22,24.57482963]
[1745935521362,0.03,148.23,148.22,70.68283965]
[1745935521531,0.03,148.23,148.22,69.50880163]
[1745935521971,0.03,148.23,148.22,70.6818627]
[1745935522633,16.90435749,148.32,148.23,0.28432314]
[1745935522868,16.90435749,148.32,148.31,24.57482963]
[1745935523027,16.90435749,148.32,148.31,24.7169912]
[1745935523226,6.4146,148.32,148.31,24.7169912]
[1745935523657,6.4146,148.32,148.31,0.14216157]
[1745935524278,6.4146,148.32,148.31,24.7169912]
[1745935524563,6.4146,148.32,148.31,0.14216157]
[1745935524737,30.98942963,148.32,148.3,17.24]
[1745935524932,24.57482963,148.31,148.3,17.24]
[1745935525150,6.4146,148.32,148.3,17.24]
[1745935525360,30.98942963,148.32,148.3,17.24]
[1745935525746,24.57482963,148.31,148.3,17.24]
[1745935525966,6.4146,148.32,148.3,17.24]
[1745935526348,6.4146,148.32,148.31,0.14216157]
[1745935527068,1.5739,148.34,148.31,24.7169912]
[1745935527240,6.3049,148.36,148.31,0.14216157]
[1745935527545,6.3049,148.36,148.33,0.14216157]
[1745935527754,6.3049,148.36,148.35,0.14216157]
[1745935527953,6.3049,148.36,148.35,24.7169912]
[1745935528340,6.3049,148.36,148.35,0.14216157]
[1745935528659,0.03,148.38,148.35,0.14216157]
[1745935528843,0.03,148.38,148.35,24.7169912]
[1745935529172,0.03,148.38,148.35,24.57482963]
[1745935529534,24.60482963,148.38,148.34,24.7169912]
[1745935529764,0.03,148.38,148.35,24.57482963]
[1745935530544,0.03,148.38,148.36,24.57482963]
[1745935531566,0.03,148.38,148.37,24.57482963]
[1745935531879,0.03,148.38,148.36,24.57482963]
[1745935532174,0.03,148.38,148.34,0.14216157]
[1745935532545,0.03,148.38,148.35,24.57482963]
[1745935532747,0.03,148.38,148.34,24.7169912]
[1745935533063,24.60482963,148.38,148.34,24.57482963]
[1745935533383,24.57482963,148.36,148.32,24.57482963]
[1745935534173,6.76948738,148.38,148.3,23.9827756]
[1745935534174,24.57482963,148.34,148.3,41.81482963]
[1745935534343,24.57482963,148.32,148.3,17.24]
[1745935534748,24.57482963,148.31,148.3,17.24]
[1745935535777,31.10952963,148.31,148.3,17.24]
[1745935536084,31.10952963,148.31,148.25,17.88]
[1745935536247,24.57482963,148.28,148.25,17.88]
[1745935537069,24.57482963,148.26,148.25,17.88]
[1745935538556,24.57482963,148.26,148.21,231.74]
[1745935538739,1.5051,148.28,148.21,231.74]
[1745935538944,24.57482963,148.24,148.21,231.74]
[1745935539263,24.57482963,148.25,148.21,256.31482963]
[1745935539481,1.5051,148.28,148.22,24.57482963]
[1745935539766,26.07992963,148.28,148.24,24.57482963]
[1745935539990,6.5347,148.31,148.26,24.57482963]
[1745935540276,31.10952963,148.31,148.27,24.57482963]
[1745935540452,24.57482963,148.29,148.26,17.88]
[1745935540649,24.57482963,148.27,148.26,17.88]
[1745935542551,6.74354305,148.29,148.22,24.57482963]
[1745935542874,6.74354305,148.29,148.21,280.94199654]
[1745935543051,24.57482963,148.26,148.22,24.57482963]
[1745935543454,24.57482963,148.23,148.21,249.62]
[1745935543752,24.57482963,148.23,148.21,17.88]
[1745935544162,24.57482963,148.22,148.21,17.88]
[1745935544755,24.57482963,148.23,148.21,17.88]
[1745935544952,1.68638143,148.29,148.21,17.88]
[1745935545151,24.57482963,148.22,148.21,17.88]
[1745935545471,24.57482963,148.22,148.17,24.69190184]
[1745935545780,24.57482963,148.21,148.17,49.26673147]
[1745935547278,24.57482963,148.21,148.18,0.14216157]
[1745935548189,24.57482963,148.22,148.18,24.7169912]
[1745935548374,24.57482963,148.21,148.18,0.14216157]
[1745935549198,24.57482963,148.21,148.18,6.8906161]
[1745935549399,24.57482963,148.21,148.18,0.14216157]
[1745935550476,24.57482963,148.2,148.17,17.943]
[1745935550890,24.57482963,148.19,148.17,18.213]
[1745935551684,24.57482963,148.18,148.17,18.213]
[1745935551884,24.57482963,148.19,148.17,18.213]
[1745935552512,13.23448844,148.23,148.17,18.213]
[1745935552666,24.57482963,148.19,148.17,18.213]
[1745935552975,13.23448844,148.23,148.18,0.14216157]
[1745935552976,6.4882,148.23,148.18,0.14216157]
[1745935553179,31.06302963,148.23,148.19,24.57482963]
[1745935553399,24.57482963,148.22,148.18,24.7169912]
[1745935554101,24.57482963,148.21,148.17,49.53674529]
[1745935554278,24.57482963,148.18,148.17,18.213]
[1745935555774,31.32337869,148.18,148.17,0.333]
[1745935555991,32.88677869,148.18,148.17,0.333]
[1745935556194,26.13822963,148.18,148.17,0.333]
[1745935556384,8.0516,148.23,148.17,0.47516157]
[1745935556579,8.0516,148.23,148.19,24.57482963]
[1745935556786,24.57482963,148.24,148.2,24.7169912]
[1745935556983,24.57482963,148.24,148.2,31.4642106]